fUSD/lending_fUSD_20250120
["ID","MTS","AMOUNT","RATE_DAILY","PERIOD"]
[349746311,1737411040495,-500.0,0.00021821,2]
[349746313,1737411040504,-500.0,0.00021821,2]
[349746315,1737411040515,-500.0,0.00021821,2]
[349746317,1737411040524,-500.0,0.00021821,2]
[349746319,1737411040533,-500.0,0.00021821,2]
[349746321,1737411040542,-500.0,0.00021821,2]
[349746323,1737411040551,-500.0,0.00021821,2]
[349746324,1737411040560,-500.0,0.00021821,2]
[349746327,1737411040569,-500.0,0.00021821,2]
[349746328,1737411040578,-500.0,0.00021821,2]
[349746330,1737411040587,-500.0,0.00021821,2]
[349746332,1737411040598,-500.0,0.00021821,2]
[349746334,1737411040607,-500.0,0.00021821,2]
[349746336,1737411040616,-500.0,0.00021821,2]
[349746338,1737411040625,-500.0,0.00021821,2]
[349746340,1737411040634,-500.0,0.00021821,2]
[349746342,1737411040643,-500.0,0.00021821,2]
[349746344,1737411040652,-500.0,0.00021821,2]
[349746346,1737411040661,-500.0,0.00021821,2]
[349746348,1737411040669,-500.0,0.00021821,2]
[349746350,1737411040678,-500.0,0.00021821,2]
[349746352,1737411040687,-500.0,0.00021821,2]
[349746354,1737411040696,-500.0,0.00021821,2]
[349746356,1737411040705,-500.0,0.00021821,2]
[349746358,1737411040713,-500.0,0.00021821,2]
[349746360,1737411040722,-500.0,0.00021821,2]
[349746362,1737411040731,-500.0,0.00021821,2]
[349746364,1737411040740,-500.0,0.00021821,2]
[349746365,1737411040749,-500.0,0.00021821,2]
[349746367,1737411040758,-500.0,0.00021821,2]
[349746369,1737411040767,-500.0,0.00021821,2]
[349746371,1737411040776,-500.0,0.00021821,2]
[349746373,1737411040785,-500.0,0.00021821,2]
[349746375,1737411040794,-500.0,0.00021821,2]
[349746377,1737411040803,-500.0,0.00021821,2]
[349746378,1737411040812,-500.0,0.00021821,2]
[349746379,1737411040821,-500.0,0.00021821,2]
[349746380,1737411040831,-500.0,0.00021821,2]
[349746381,1737411040840,-500.0,0.00021821,2]
[349746382,1737411040850,-500.0,0.00021821,2]
[349746383,1737411040858,-500.0,0.00021821,2]
[349746384,1737411040867,-500.0,0.00021821,2]
[349746385,1737411040877,-500.0,0.00021821,2]
[349746386,1737411040886,-500.0,0.00021821,2]
[349746387,1737411040897,-500.0,0.00021821,2]
[349746388,1737411040906,-500.0,0.00021821,2]
[349746389,1737411040916,-500.0,0.00021821,2]
[349746390,1737411040925,-500.0,0.00021821,2]
[349746391,1737411040933,-500.0,0.00021821,2]
[349746392,1737411040943,-500.0,0.00021821,2]
[349746393,1737411040952,-500.0,0.00021821,2]
[349746394,1737411040961,-500.0,0.00021821,2]
[349746395,1737411040970,-834.0,0.00021821,2]
[349746396,1737411040980,-500.0,0.00021821,2]
[349746397,1737411040989,-500.0,0.00021821,2]
[349746398,1737411040999,-500.0,0.00021821,2]
[349746399,1737411041018,-500.0,0.00021821,2]
[349746400,1737411041028,-500.0,0.00021821,2]
[349746401,1737411041037,-500.0,0.00021821,2]
[349746402,1737411041047,-500.0,0.00021821,2]
[349746403,1737411041057,-500.0,0.00021821,2]
[349746404,1737411041067,-500.0,0.0002189,2]
[349746405,1737411041076,-68781.65965263,0.000219,2]
[349746406,1737411041085,-1065.7,0.000219,2]
[349746407,1737411041095,-2000.0,0.000219,2]
[349746408,1737411041104,-547.38597018,0.000219,2]
[349746409,1737411041114,-547.38597018,0.000219,2]
[349746410,1737411041124,-547.38597018,0.000219,2]
[349746411,1737411041134,-547.38597018,0.000219,2]
[349746412,1737411041144,-547.38597018,0.000219,2]
[349746413,1737411041153,-547.38597018,0.000219,2]
[349746414,1737411041162,-547.38597018,0.000219,2]
[349746415,1737411041172,-547.38597018,0.000219,2]
[349746416,1737411041181,-547.38597018,0.000219,2]
[349746417,1737411041191,-547.38597018,0.000219,2]
[349746418,1737411041200,-547.38597018,0.000219,2]
[349746419,1737411041210,-547.38597018,0.000219,2]
[349746420,1737411041220,-2034.87,0.000219,31]
[349746421,1737411041229,-2034.87,0.000219,31]
[349746422,1737411041239,-2034.87,0.000219,31]
[349746423,1737411041249,-2034.87,0.000219,31]
[349746424,1737411041258,-2034.87,0.000219,31]
[349746425,1737411041268,-2034.87,0.000219,31]
[349746426,1737411041277,-2034.87,0.000219,31]
[349746427,1737411041288,-2034.87,0.000219,31]
[349746428,1737411041298,-2034.87,0.000219,31]
[349746429,1737411041307,-2034.87,0.000219,31]
[349746430,1737411041316,-2034.87,0.000219,31]
[349746431,1737411041326,-2034.87,0.000219,31]
[349746432,1737411041335,-2034.87,0.000219,31]
[349746433,1737411041345,-2034.87,0.000219,31]
[349746434,1737411041356,-2034.87,0.000219,31]
[349746435,1737411041366,-2034.87,0.000219,31]
[349746436,1737411041375,-10124.56957668,0.000219,2]
[349746437,1737411041384,-500.0,0.00021917,3]
[349746438,1737411041393,-500.0,0.00021917,3]
[349746439,1737411041402,-4000.0,0.00021918,2]
[349746440,1737411041412,-150.0,0.00021918,2]
[349746441,1737411041422,-159.55904823,0.0002192,2]
[349746442,1737411041431,-159.55904823,0.0002192,2]
[349746443,1737411041442,-159.55904823,0.0002192,2]
[349746444,1737411041451,-159.55904823,0.0002192,2]
[349746445,1737411041460,-159.55904823,0.0002192,2]
[349746446,1737411041469,-159.55904823,0.0002192,2]
[349746447,1737411041478,-159.55904823,0.0002192,2]
[349746448,1737411041487,-159.55,0.0002192,2]
[349746450,1737411041497,-156.75976668,0.0002192,2]
[349746452,1737411041685,-156.75976668,0.0002192,2]
[349746453,1737411041695,-156.75976668,0.0002192,2]
[349746454,1737411041704,-156.75976668,0.0002192,2]
[349746455,1737411041713,-156.75976668,0.0002192,2]
[349746456,1737411041722,-156.75976668,0.0002192,2]
[349746457,1737411041731,-156.75976668,0.0002192,2]
[349746458,1737411041740,-156.75976668,0.0002192,2]
[349746459,1737411041749,-156.75976668,0.0002192,2]
[349746460,1737411041758,-156.75976668,0.0002192,2]
[349746461,1737411041767,-156.75976668,0.0002192,2]
[349746462,1737411041776,-156.75976668,0.0002192,2]
[349746463,1737411041785,-156.75976668,0.0002192,2]
[349746464,1737411041799,-156.75976668,0.0002192,2]
[349746465,1737411041808,-156.75976668,0.0002192,2]
[349746466,1737411041818,-156.75976668,0.0002192,2]
[349746467,1737411041827,-156.75976668,0.0002192,2]
[349746468,1737411041837,-156.75976668,0.0002192,2]
[349746469,1737411041846,-156.75,0.0002192,2]
[349746470,1737411041858,-1028.11234922,0.0002192,2]
[349746471,1737411041867,-1028.11234922,0.0002192,2]
[349746472,1737411041876,-1028.11234922,0.0002192,2]
[349746473,1737411041885,-1028.11234922,0.0002192,2]
[349746474,1737411041894,-1028.11234922,0.0002192,2]
[349746475,1737411041904,-1028.11234922,0.0002192,2]
[349746476,1737411041914,-1028.11234922,0.0002192,2]
[349746477,1737411041923,-1028.11234922,0.0002192,2]
[349746478,1737411041932,-1028.11234922,0.0002192,2]
[349746479,1737411041941,-1028.11234922,0.0002192,2]
[349746480,1737411041952,-1028.11234922,0.0002192,2]
[349746481,1737411041962,-1028.11234922,0.0002192,2]
[349746482,1737411041971,-1028.11234922,0.0002192,2]
[349746483,1737411041981,-1028.11234922,0.0002192,2]
[349746484,1737411041991,-1028.11234922,0.0002192,2]
[349746485,1737411042000,-1028.11234922,0.0002192,2]
[349746486,1737411042009,-1028.11234922,0.0002192,2]
[349746487,1737411042018,-1028.11234922,0.0002192,2]
[349746488,1737411042027,-1028.11234922,0.0002192,2]
[349746489,1737411042036,-1028.11,0.0002192,2]
[349746490,1737411042046,-2398.92881484,0.0002192,2]
[349746491,1737411042054,-2398.92881484,0.0002192,2]
[349746492,1737411042063,-2398.92881484,0.0002192,2]
[349746493,1737411042073,-2398.92881484,0.0002192,2]
[349746494,1737411042082,-2398.92881484,0.0002192,2]
[349746495,1737411042091,-2398.92881484,0.0002192,2]
[349746496,1737411042100,-2398.92881484,0.0002192,2]
[349746497,1737411042110,-2398.92881484,0.0002192,2]
[349746498,1737411042119,-2398.92881484,0.0002192,2]
[349746499,1737411042128,-2398.92881484,0.0002192,2]
[349746500,1737411042137,-2398.92881484,0.0002192,2]
[349746501,1737411042146,-2398.92881484,0.0002192,2]
[349746502,1737411042156,-2398.92881484,0.0002192,2]
[349746503,1737411042165,-2398.92881484,0.0002192,2]
[349746504,1737411042174,-2398.92881484,0.0002192,2]
[349746505,1737411042183,-2398.92881484,0.0002192,2]
[349746506,1737411042193,-2398.92881484,0.0002192,2]
[349746507,1737411042203,-2398.92881484,0.0002192,2]
[349746508,1737411042212,-2398.92881484,0.0002192,2]
[349746509,1737411042222,-2398.92,0.0002192,2]
[349746510,1737411042232,-537.38973346,0.0002192,2]
[349746511,1737411042241,-537.38973346,0.0002192,2]
[349746512,1737411042251,-537.38973346,0.0002192,2]
[349746513,1737411042260,-537.38973346,0.0002192,2]
[349746514,1737411042269,-537.38973346,0.0002192,2]
[349746515,1737411042279,-537.38973346,0.0002192,2]
[349746516,1737411042288,-537.38973346,0.0002192,2]
[349746517,1737411042297,-537.38973346,0.0002192,2]
[349746518,1737411042306,-537.38973346,0.0002192,2]
[349746519,1737411042315,-537.38973346,0.0002192,2]
[349746520,1737411042323,-537.38973346,0.0002192,2]
[349746521,1737411042332,-537.38973346,0.0002192,2]
[349746522,1737411042341,-537.38973346,0.0002192,2]
[349746523,1737411042351,-537.38973346,0.0002192,2]
[349746524,1737411042360,-537.38973346,0.0002192,2]
[349746525,1737411042369,-537.38973346,0.0002192,2]
[349746526,1737411042377,-537.38973346,0.0002192,2]
[349746527,1737411042386,-537.38973346,0.0002192,2]
[349746528,1737411042395,-537.38973346,0.0002192,2]
[349746529,1737411042403,-537.38,0.0002192,2]
[349746530,1737411042413,-1253.90937807,0.0002192,2]
[349746531,1737411042422,-1253.90937807,0.0002192,2]
[349746532,1737411042435,-1253.90937807,0.0002192,2]
[349746533,1737411042444,-1253.90937807,0.0002192,2]
[349746534,1737411042454,-1253.90937807,0.0002192,2]
[349746535,1737411042464,-1253.90937807,0.0002192,2]
[349746536,1737411042475,-1253.90937807,0.0002192,2]
[349746537,1737411042484,-1253.90937807,0.0002192,2]
[349746538,1737411042493,-1253.90937807,0.0002192,2]
[349746539,1737411042503,-1253.90937807,0.0002192,2]
[349746540,1737411042513,-1253.90937807,0.0002192,2]
[349746541,1737411042523,-1253.90937807,0.0002192,2]
[349746542,1737411042532,-1253.90937807,0.0002192,2]
[349746543,1737411042542,-1253.90937807,0.0002192,2]
[349746544,1737411042551,-1253.90937807,0.0002192,2]
[349746545,1737411042561,-1253.90937807,0.0002192,2]
[349746546,1737411042570,-1253.90937807,0.0002192,2]
[349746547,1737411042580,-1253.90937807,0.0002192,2]
[349746548,1737411042589,-1253.90937807,0.0002192,2]
[349746549,1737411042599,-1253.9,0.0002192,2]
[349746550,1737411042610,-420.0,0.0002192,2]
[349746551,1737411042619,-1652.37,0.00021959,7]
[349746552,1737411042630,-1652.37,0.00021959,7]
[349746553,1737411042639,-400.0,0.0002197,2]
[349746554,1737411042652,-400.0,0.0002197,2]
[349746555,1737411042662,-476.09307325,0.0002197,2]
[349746556,1737411042671,-150.0,0.00021973,4]
[349746557,1737411042680,-285.16028511,0.00021973,4]
[349746558,1737411042690,-150.0,0.00021973,4]
[349746559,1737411042699,-7859.26474112,0.00021974,2]
[349746560,1737411042708,-5000.0,0.00021974,2]
[349746561,1737411042718,-150.0,0.00021976,4]
[349746562,1737411042728,-150.0,0.00021979,4]
[349746563,1737411042738,-150.0,0.00021982,4]
[349746564,1737411042747,-150.0,0.00021985,4]
[349746566,1737411042757,-150.0,0.00021988,4]
[349746568,1737411042766,-223.71060749,0.0002199,2]
[349746570,1737411042776,-3100.0,0.0002199,15]
[349746572,1737411042785,-223.71060749,0.0002199,2]
[349746574,1737411042795,-1671.0,0.0002199,29]
[349746576,1737411042804,-150.0,0.00021991,4]
[349746578,1737411042813,-150.0,0.00021994,4]
[349746580,1737411042822,-150.0,0.00021997,4]
[349746581,1737411042832,-150.0,0.00021999,2]
[349746582,1737411042842,-2000.0,0.00021999,2]
[349746584,1737411042851,-2000.0,0.00021999,2]
[349746586,1737411042860,-2000.0,0.00021999,2]
[349746588,1737411042869,-2000.0,0.00021999,2]
[349746590,1737411042879,-500.0,0.00021999,2]
[349746592,1737411042888,-1029.55,0.00021999,2]
[349746593,1737411042900,-1769.0,0.00021999,2]
[349746594,1737411042909,-1715708.14585728,0.00022,2]
[349746595,1737411042918,-1688.77555852,0.00022,2]
[349746596,1737411042928,-10888757.99213719,0.00022,2]
[349746597,1737411042938,-60530.03883803,0.00022,2]
[349746598,1737411042947,-2381.77355208,0.00022,7]
[349746599,1737411042956,-1510.1739758,0.00022,2]
[349746600,1737411042965,-1508.0,0.00022,8]
[349746601,1737411042974,-1582.9,0.00022,9]
[349746602,1737411042984,-2041028.47884563,0.00022,2]
[349746603,1737411042993,-489402.06753233,0.00022,2]
[349746604,1737411043167,-11471.73210227,0.00022,2]
[349746605,1737411043180,-22427.3007396,0.00022,2]
[349746606,1737411043192,-2234.46550387,0.00022,2]
[349746607,1737411043203,-204480.0,0.00022,2]
[349746608,1737411043217,-21351.6412869,0.00022,2]
[349746609,1737411043228,-1815.22447531,0.00022,2]
[349746610,1737411043373,-500.0,0.0002182,2]
[349746611,1737411043383,-14.87436,0.00022,2]
[349746612,1737411043394,-852.96494053,0.00022,2]
[349746614,1737411043405,-5116.0,0.00022,2]
[349746618,1737411043583,-568.71550131,0.00021819,2]
[349746619,1737411043592,-457.43149869,0.00022,2]
[349746620,1737411043676,-308.0,0.0002199,35]
[349746621,1737411043687,-4742.0,0.0002199,35]
[349746622,1737411043697,-13680.36812988,0.00022,2]
[349746623,1737411043707,-5984.0448,0.00022,2]
[349746634,1737411046000,-150.880166,0.00021546,2]
[349746635,1737411046010,-167.98060862,0.00021546,2]
[349746636,1737411046023,-631.12939138,0.00021546,2]
[349746637,1737411046032,-150.0,0.00021738,2]
[349746638,1737411046041,-799.11,0.0002182,2]
[349746639,1737411046050,-184.51179674,0.00021976,2]
[349746640,1737411046059,-100742.46561458,0.00022,2]
[349746641,1737411046206,-13069.99999989,0.00022,2]
[349746642,1737411046217,-821.82207999,0.00022,2]
[349746643,1737411046234,-769.550001,0.00022,2]
[349746644,1737411046347,-1102.03499,0.00022,2]
[349746645,1737411046359,-515.9,0.00022,2]
[349746646,1737411346944,156.75,0.00010137,2]
[349746657,1737412039777,248.68631643,0.000101,2]
[349746658,1737412075096,2694.01737587,0.0001,2]
[349746659,1737412078966,296495.7463077,0.0001,2]
[349746660,1737412078997,222910.51492146,0.0001,2]
[349746702,1737412232398,-200.0,0.000112,4]
[349746703,1737412232408,-300.0,0.000112,4]
[349746704,1737412232418,-500.0,0.000113,4]
[349746705,1737412232428,-600.0,0.000113,4]
[349746706,1737412232437,-700.0,0.000114,4]
[349746707,1737412232447,-1000.0,0.000114,4]
[349746708,1737412232456,-1000.0,0.000115,4]
[349746709,1737412232466,-1300.0,0.000115,4]
[349746710,1737412232476,-8064.8478385,0.000115,2]
[349746711,1737412232488,-4076.16269039,0.000115,2]
[349746712,1737412232786,-2964.1019307,0.000115,2]
[349746713,1737412232812,-278.99704964,0.000115,2]
[349746714,1737412232825,-1200.0,0.000116,4]
[349746715,1737412232835,-706.42470286,0.000116,4]
[349746716,1737412232854,-893.57529714,0.000116,4]
[349746717,1737412232863,-200.0,0.000117,4]
[349746718,1737412232874,-300.0,0.000117,4]
[349746719,1737412232884,-200.0,0.000118,4]
[349746720,1737412232894,-300.0,0.000118,4]
[349746721,1737412232906,-200.0,0.000119,4]
[349746722,1737412232917,-500.03833846,0.000119,2]
[349746723,1737412232926,-17228.0,0.00011973,2]
[349746724,1737412232936,-410.0,0.00011973,2]
[349746725,1737412232945,-160.95871853,0.00011973,2]
[349746726,1737412232955,-500.0,0.00011973,2]
[349746727,1737412232964,-500.0,0.00011973,2]
[349746728,1737412232974,-358.62945079,0.00011973,2]
[349746729,1737412232984,-500.0,0.00011973,2]
[349746730,1737412232994,-152.98893756,0.00011973,2]
[349746731,1737412233004,-160.98835902,0.00011973,2]
[349746732,1737412233014,-153.41805511,0.00011973,2]
[349746733,1737412233024,-150.98935616,0.00011973,2]
[349746734,1737412233034,-472.23859144,0.00011973,2]
[349746735,1737412233043,-150.98936727,0.00011973,2]
[349746736,1737412233053,-152.24397455,0.00011973,2]
[349746737,1737412233063,-160.49519242,0.00011973,2]
[349746738,1737412233073,-169.88613478,0.00011973,2]
[349746739,1737412233083,-1907.39143557,0.0001199,2]
[349746740,1737412233092,-1907.39143557,0.0001199,2]
[349746741,1737412233102,-1907.39143557,0.0001199,2]
[349746742,1737412233112,-150.0,0.00011999,2]
[349746743,1737412233122,-59573.03066397,0.00012,2]
[349746744,1737412233152,-18837.98783675,0.00012,2]
[349746769,1737412238224,-300.0,0.000119,4]
[349746770,1737412238235,-16187703.87242342,0.00012,2]
[349746771,1737412238244,-250.0,0.00012,2]
[349746772,1737412238254,-332.03562404,0.00012421,2]
[349746773,1737412238263,-24829.59528774,0.00012421,2]
[349746774,1737412238272,-500.0,0.00012521,2]
[349746775,1737412238282,-500.0,0.00012521,2]
[349746776,1737412238292,-388.24907619,0.00012521,2]
[349746777,1737412238302,-5260.63440073,0.00013043,2]
[349746778,1737412238312,-14138.52232314,0.000148,2]
[349746779,1737412238322,-550.0,0.00015,2]
[349746780,1737412238334,-465.23,0.00015315,2]
[349746781,1737412238343,-250.0,0.0001568,2]
[349746782,1737412238353,-322.0,0.00016712,2]
[349746783,1737412238363,-500.03833845,0.000169,2]
[349746784,1737412238373,-600.0,0.00017,2]
[349746785,1737412238382,-2314.04,0.00017,2]
[349746786,1737412238392,-332.03562403,0.00017161,2]
[349746787,1737412238402,-24829.59528773,0.00017161,2]
[349746788,1737412238411,-465.23,0.00017229,2]
[349746789,1737412238421,-212.91098509,0.000173,2]
[349746790,1737412238431,-212.91098502,0.000173,2]
[349746791,1737412238444,-212.91098502,0.000173,2]
[349746792,1737412238454,-212.91098502,0.000173,2]
[349746793,1737412238463,-212.91098502,0.000173,2]
[349746794,1737412238473,-212.91098502,0.000174,2]
[349746795,1737412238482,-5260.63440071,0.00017472,2]
[349746796,1737412238492,-212.91098502,0.000179,2]
[349746797,1737412238504,-500.0,0.00018164,2]
[349746798,1737412238514,-153.14,0.000183,2]
[349746799,1737412238524,-153.14,0.000183,2]
[349746800,1737412238534,-153.14,0.000183,2]
[349746801,1737412238544,-153.14,0.000183,2]
[349746802,1737412238555,-153.14,0.000183,2]
[349746803,1737412238565,-212.91098502,0.000184,2]
[349746804,1737412238574,-4764.85008246,0.00018898,2]
[349746805,1737412238584,-212.91098502,0.000189,2]
[349746806,1737412238594,-650.0,0.00019,2]
[349746807,1737412238603,-2892.27,0.00019015,2]
[349746808,1737412238613,-465.23,0.00019143,2]
[349746809,1737412238622,-754.46,0.00019178,2]
[349746811,1737412238631,-500.0,0.00019178,2]
[349746813,1737412238641,-1421.43,0.00019178,2]
[349746815,1737412238651,-730.78,0.00019178,2]
[349746817,1737412238660,-1733.52,0.00019178,2]
[349746819,1737412238670,-500.0,0.00019178,2]
[349746821,1737412238679,-1064.81,0.00019178,2]
[349746823,1737412238688,-1159.49,0.00019178,2]
[349746825,1737412238697,-500.0,0.00019178,2]
[349746827,1737412238706,-719.37,0.00019178,2]
[349746829,1737412238715,-1067.46,0.00019178,2]
[349746832,1737412238724,-500.0,0.00019178,2]
[349746834,1737412238734,-1320.52,0.00019178,2]
[349746836,1737412238744,-744.76,0.00019178,2]
[349746838,1737412238753,-1568.13,0.00019178,2]
[349746840,1737412238763,-856.36,0.00019178,2]
[349746841,1737412238772,-839.21,0.00019178,2]
[349746842,1737412238782,-500.0,0.00019178,2]
[349746843,1737412238791,-500.0,0.00019178,2]
[349746844,1737412238800,-710.41,0.00019178,2]
[349746845,1737412238811,-500.0,0.00019178,2]
[349746846,1737412238823,-500.0,0.00019178,2]
[349746847,1737412238832,-500.0,0.00019178,2]
[349746848,1737412238842,-500.0,0.00019178,2]
[349746849,1737412238852,-500.0,0.00019178,2]
[349746850,1737412238864,-500.0,0.00019178,2]
[349746851,1737412238873,-500.0,0.00019178,2]
[349746852,1737412238883,-500.0,0.00019178,2]
[349746853,1737412238894,-500.0,0.00019178,2]
[349746854,1737412238903,-500.0,0.00019178,2]
[349746855,1737412238913,-228.59656804,0.00019178,2]
[349746856,1737412238923,-2997.16,0.00019178,2]
[349746857,1737412238932,-500.0,0.00019178,2]
[349746858,1737412238942,-500.0,0.00019178,2]
[349746859,1737412238952,-500.0,0.00019178,2]
[349746860,1737412238962,-156.75,0.00019198,2]
[349746861,1737412238971,-212.91098502,0.000194,2]
[349746862,1737412238982,-754.46,0.00019452,2]
[349746863,1737412238992,-500.0,0.00019452,2]
[349746864,1737412239002,-1421.43,0.00019452,2]
[349746865,1737412239012,-730.78,0.00019452,2]
[349746866,1737412239021,-1733.52,0.00019452,2]
[349746867,1737412239031,-500.0,0.00019452,2]
[349746868,1737412239040,-1064.81,0.00019452,2]
[349746869,1737412239050,-1159.49,0.00019452,2]
[349746870,1737412239059,-586.46,0.00019452,2]
[349746871,1737412239069,-719.37,0.00019452,2]
[349746872,1737412239079,-1067.46,0.00019452,2]
[349746873,1737412239088,-500.0,0.00019452,2]
[349746874,1737412239098,-1320.52,0.00019452,2]
[349746875,1737412239107,-744.76,0.00019452,2]
[349746876,1737412239126,-1568.13,0.00019452,2]
[349746877,1737412239138,-856.36,0.00019452,2]
[349746878,1737412239148,-839.21,0.00019452,2]
[349746879,1737412239158,-500.0,0.00019452,2]
[349746880,1737412239168,-500.0,0.00019452,2]
[349746881,1737412239178,-710.41,0.00019452,2]
[349746882,1737412239188,-500.0,0.00019452,2]
[349746883,1737412239198,-500.0,0.00019452,2]
[349746884,1737412239208,-500.0,0.00019452,2]
[349746885,1737412239218,-500.0,0.00019452,2]
[349746886,1737412239228,-500.0,0.00019452,2]
[349746887,1737412239237,-500.0,0.00019452,2]
[349746888,1737412239247,-500.0,0.00019452,2]
[349746889,1737412239259,-488.59602379,0.00019452,2]
[349746890,1737412239269,-500.0,0.00019452,2]
[349746891,1737412239278,-2997.16,0.00019452,2]
[349746892,1737412239288,-500.0,0.00019452,2]
[349746893,1737412239297,-171.2427429,0.00019452,2]
[349746894,1737412239308,-453.70026637,0.00019452,2]
[349746895,1737412239318,-754.46,0.00019726,2]
[349746896,1737412239328,-500.0,0.00019726,2]
[349746897,1737412239338,-1421.43,0.00019726,2]
[349746898,1737412239348,-730.78,0.00019726,2]
[349746899,1737412239357,-1733.52,0.00019726,2]
[349746900,1737412239366,-500.0,0.00019726,2]
[349746901,1737412239376,-1064.81,0.00019726,2]
[349746902,1737412239386,-1159.49,0.00019726,2]
[349746903,1737412239396,-719.37,0.00019726,2]
[349746904,1737412239406,-1067.46,0.00019726,2]
[349746905,1737412239415,-500.0,0.00019726,2]
[349746906,1737412239425,-1320.52,0.00019726,2]
[349746907,1737412239435,-744.76,0.00019726,2]
[349746908,1737412239444,-1568.13,0.00019726,2]
[349746909,1737412239453,-856.36,0.00019726,2]
[349746910,1737412239463,-839.21,0.00019726,2]
[349746911,1737412239474,-500.0,0.00019726,2]
[349746912,1737412239483,-500.0,0.00019726,2]
[349746913,1737412239493,-710.41,0.00019726,2]
[349746914,1737412239502,-500.0,0.00019726,2]
[349746915,1737412239511,-500.0,0.00019726,2]
[349746916,1737412239521,-500.0,0.00019726,2]
[349746917,1737412239531,-340.39079459,0.00019726,2]
[349746918,1737412239541,-500.0,0.00019726,2]
[349746919,1737412239551,-500.0,0.00019726,2]
[349746920,1737412239560,-500.0,0.00019726,2]
[349746921,1737412239570,-500.0,0.00019726,2]
[349746922,1737412239580,-2997.16,0.00019726,2]
[349746923,1737412239590,-212.91098502,0.000199,2]
[349746924,1737412239600,-45667.48690423,0.0002,2]
[349746925,1737412239610,-61049.58289552,0.0002,4]
[349746926,1737412239620,-250.0,0.0002,2]
[349746927,1737412239630,-754.46,0.0002,2]
[349746928,1737412239640,-512.5820959,0.0002,2]
[349746929,1737412239650,-1421.43,0.0002,2]
[349746930,1737412239660,-730.78,0.0002,2]
[349746931,1737412239670,-2357.36630487,0.0002,2]
[349746932,1737412239680,-1733.52,0.0002,2]
[349746933,1737412239690,-500.0,0.0002,2]
[349746934,1737412239699,-1064.81,0.0002,2]
[349746935,1737412239709,-1159.49,0.0002,2]
[349746936,1737412239719,-719.37,0.0002,2]
[349746937,1737412239730,-1067.46,0.0002,2]
[349746938,1737412239740,-500.0,0.0002,2]
[349746939,1737412239750,-2314.04,0.0002,2]
[349746940,1737412239760,-1320.52,0.0002,2]
[349746941,1737412239770,-744.76,0.0002,2]
[349746942,1737412239779,-1568.13,0.0002,2]
[349746943,1737412239789,-856.36,0.0002,2]
[349746944,1737412239799,-1000.0,0.0002,2]
[349746945,1737412239812,-839.21,0.0002,2]
[349746946,1737412239822,-500.0,0.0002,2]
[349746947,1737412239831,-470.64406514,0.0002,2]
[349746948,1737412239841,-710.41,0.0002,2]
[349746949,1737412239851,-500.0,0.0002,2]
[349746950,1737412239861,-500.0,0.0002,2]
[349746951,1737412239870,-647.35562892,0.0002,2]
[349746952,1737412239880,-500.0,0.0002,2]
[349746953,1737412239891,-500.0,0.0002,2]
[349746954,1737412239903,-500.0,0.0002,2]
[349746955,1737412239912,-500.0,0.0002,2]
[349746956,1737412239922,-2997.16,0.0002,2]
[349746957,1737412239932,-174.84,0.00020188,2]
[349746959,1737412239942,-754.46,0.00020273,2]
[349746960,1737412239951,-1421.43,0.00020273,2]
[349746961,1737412239961,-730.78,0.00020273,2]
[349746962,1737412239971,-1733.52,0.00020273,2]
[349746963,1737412239981,-500.0,0.00020273,2]